bitfinex/quotes_ETHUSD_20251023
["timestamp","ask_amount","ask_price","bid_price","bid_amount"]
[1761226561783,0.1,3866.0,3864.9,2.58734601]
[1761226561984,0.1,3866.0,3864.3,2.58776283]
[1761226562177,2.58674207,3865.9,3864.3,2.58778243]
[1761226562358,2.58674207,3865.9,3863.9,0.4276]
[1761226562359,0.28817421,3865.8,3863.9,0.4276]
[1761226562557,0.195,3866.1,3863.9,0.4276]
[1761226562558,0.1,3865.9,3863.9,0.4276]
[1761226562761,0.1983,3864.6,3863.8,2.58810602]
[1761226563087,0.1009,3864.5,3863.1,3.586]
[1761226563270,0.1983,3864.6,3863.1,3.96638]
[1761226563476,0.1983,3864.6,3863.2,0.02588527]
[1761226563677,0.2983,3865.1,3864.3,2.5877386]
[1761226563878,0.2983,3865.1,3864.3,2.58778433]
[1761226563879,0.1974,3865.1,3864.3,2.58778433]
[1761226564187,0.1974,3865.1,3863.7,3.587]
[1761226564690,1.7502,3866.1,3864.0,2.06208]
[1761226564691,0.1029,3865.9,3864.0,2.06208]
[1761226564891,0.1029,3865.9,3863.4,2.58837442]
[1761226565095,0.1029,3865.9,3863.9,2.58805869]
[1761226565389,0.1296,3865.6,3865.0,2.71691558]
[1761226565590,0.1296,3865.6,3865.1,2.58725518]
[1761226565793,0.1296,3865.6,3865.0,0.1296]
[1761226566196,0.1955,3865.1,3864.1,2.58788836]
[1761226566396,0.1955,3865.1,3863.3,0.4276]
[1761226566596,0.1306,3865.0,3864.4,0.1296]
[1761226566799,0.1296,3864.8,3864.2,0.1296]
[1761226567104,0.1296,3864.4,3864.0,2.58799171]
[1761226567400,0.1038,3864.3,3863.8,0.1296]
[1761226567574,0.1038,3864.3,3863.4,2.869]
[1761226567774,0.1296,3864.2,3863.6,0.1296]
[1761226568002,0.1038,3864.3,3863.4,2.869]
[1761226568216,1.5562,3865.0,3863.5,0.15548326]
[1761226568217,0.1038,3864.7,3863.5,0.15548326]
[1761226568361,0.001,3865.0,3864.6,2.58753519]
[1761226568558,0.1296,3864.8,3864.5,2.58762039]
[1761226568761,0.1048,3865.0,3864.5,2.58760351]
[1761226568990,0.1048,3865.0,3863.5,0.4276]
[1761226568991,0.001,3865.0,3864.8,2.58740405]
[1761226569195,0.1038,3864.9,3864.5,2.5875972]
[1761226569395,0.1038,3864.9,3863.6,0.32966]
[1761226569592,0.1038,3864.9,3863.2,0.4276]
[1761226569768,0.1038,3864.9,3863.3,2.3968846]
[1761226569969,0.1038,3864.9,3864.3,2.58777291]
[1761226570184,0.1038,3864.9,3864.1,2.58786954]
[1761226570362,0.1038,3864.9,3864.4,2.58766367]
[1761226570710,0.1038,3864.9,3863.1,3.579]
[1761226570863,0.1038,3864.9,3864.4,2.58767196]
[1761226571089,0.1038,3864.9,3863.3,3.581]
[1761226571618,2.69121622,3864.9,3863.3,3.581]
[1761226571802,2.58757031,3864.7,3863.3,3.581]
[1761226571990,0.26913703,3864.6,3863.9,2.58800625]
[1761226572190,0.1038,3864.9,3863.4,2.58839364]
[1761226572392,0.1038,3864.9,3863.8,2.58812047]
[1761226572587,0.1038,3864.9,3863.3,3.581]
[1761226572588,0.1903,3863.4,3863.3,3.581]
[1761226572916,0.1903,3863.4,3863.3,6.16946064]
[1761226573116,0.1903,3863.4,3862.7,3.578]
[1761226573323,0.1903,3863.4,3863.3,2.58846064]
[1761226573498,0.1046,3863.8,3862.8,2.58879569]
[1761226573822,0.1886,3864.2,3864.1,2.58792474]
[1761226574022,0.1886,3864.2,3863.0,2.58866166]
[1761226574337,0.1886,3864.2,3864.1,2.58792474]
[1761226574691,0.001,3865.0,3863.4,4.0046]
[1761226574925,0.099,3864.9,3863.1,0.45714617]
[1761226575142,2.58772959,3864.4,3863.3,2.58845567]
[1761226575324,2.58772328,3864.5,3863.6,2.58824548]
[1761226575630,2.58752296,3864.7,3863.2,2.58848481]
[1761226575920,1.5562,3865.0,3862.3,0.75322341]
[1761226575921,0.194,3863.1,3862.3,0.75322341]
[1761226576729,0.1007,3863.0,3862.3,0.75322341]
[1761226577106,0.1007,3863.0,3862.4,2.5890088]
[1761226577432,2.76303886,3864.0,3863.5,2.58829852]
[1761226577433,0.175,3864.0,3863.5,2.58829852]
[1761226577590,0.175,3864.0,3862.5,3.60488996]
[1761226577591,0.2928,3863.9,3862.5,3.579]
[1761226577924,0.2928,3863.9,3862.7,2.58886271]
[1761226578128,0.175,3864.0,3863.5,2.5882698]
[1761226578422,0.175,3864.0,3863.6,2.58825528]
[1761226578622,0.175,3864.0,3863.9,2.58805869]
[1761226578834,0.1296,3863.8,3863.7,2.58819266]
[1761226579050,0.3046,3864.0,3863.5,2.71789814]
[1761226579229,0.175,3864.0,3863.6,2.58823672]
[1761226579432,0.175,3864.0,3863.1,6.16455203]
[1761226579433,0.1296,3863.8,3863.7,2.58819266]
[1761226579808,0.2296,3863.8,3863.1,3.576]
[1761226580000,0.1296,3863.6,3863.1,3.576]
[1761226580237,0.1296,3863.6,3863.4,2.58834328]
[1761226580598,0.1,3863.5,3862.0,0.2178]
[1761226580799,0.1296,3863.2,3862.0,2.80712767]
[1761226580999,0.1296,3863.3,3862.7,0.1296]
[1761226581194,0.1296,3863.3,3863.2,2.58852764]
[1761226581606,0.1296,3863.3,3862.7,0.1296]
[1761226581808,0.175,3864.0,3863.5,2.58828069]
[1761226582008,0.175,3864.0,3862.8,0.02588795]
[1761226582336,0.175,3864.0,3863.8,2.58810662]
[1761226582531,0.175,3864.0,3863.9,2.58805869]
[1761226582737,0.175,3864.0,3863.0,6.1596393]
[1761226582932,0.175,3864.0,3863.8,2.58810156]
[1761226583136,0.175,3864.0,3863.7,2.58817058]
[1761226583432,0.1742,3864.0,3863.1,2.58859465]
[1761226583604,0.1742,3864.0,3863.6,2.5882427]
[1761226583605,0.2742,3864.0,3863.6,2.5882427]
[1761226583947,0.1,3863.9,3862.1,3.569]
[1761226584116,0.1,3863.9,3862.4,2.58906379]
[1761226584318,0.1742,3864.0,3863.6,0.002]
[1761226584513,0.1,3863.9,3863.6,0.002]
[1761226584715,2.58819266,3863.7,3863.6,0.002]
[1761226585125,2.68819266,3863.7,3863.6,0.002]
[1761226586831,0.1,3863.7,3863.6,0.002]
[1761226587761,2.76220405,3864.0,3863.6,0.002]
[1761226587762,0.1742,3864.0,3863.6,0.002]
[1761226587942,0.1742,3864.0,3863.6,2.59023836]
[1761226588254,0.1,3863.9,3863.6,2.5902008]
[1761226588418,0.1742,3864.0,3863.7,2.58814407]
[1761226588618,0.1742,3864.0,3863.9,2.58805869]
[1761226589455,0.1742,3864.0,3863.6,0.002]
[1761226589763,0.1742,3864.0,3863.9,2.58805869]
[1761226590151,0.412,3864.9,3863.9,2.58805869]
[1761226590152,0.1955,3865.1,3863.9,0.25900587]
[1761226590348,0.1955,3865.1,3863.9,2.58799708]
[1761226590349,2.68822335,3864.7,3863.9,2.58799708]
[1761226590551,2.5876404,3864.6,3863.7,2.58819266]
[1761226590848,0.1727,3863.8,3863.6,0.002]
[1761226591940,0.1296,3863.7,3863.6,0.002]
[1761226592331,0.099,3864.8,3863.6,0.002]
[1761226592530,0.099,3864.7,3863.6,0.002]
[1761226592939,2.58764076,3864.6,3863.8,2.58807869]
[1761226593140,2.58764076,3864.6,3863.6,2.5902522]
[1761226593141,2.58764076,3864.6,3863.9,2.58803404]
[1761226593453,0.099,3864.6,3863.6,0.002]
[1761226593662,0.001,3865.0,3863.6,0.002]
[1761226593865,0.17517,3864.9,3863.6,0.002]
[1761226594163,2.58832574,3865.0,3864.3,2.58777494]
[1761226594340,0.001,3865.0,3864.4,2.58765882]
[1761226594661,0.001,3865.0,3864.4,2.5876653]
[1761226595168,0.001,3865.0,3863.6,0.002]
[1761226595169,2.58751553,3864.8,3863.6,0.002]
[1761226595342,2.58804247,3864.0,3863.6,0.002]
[1761226595544,3.557,3864.3,3863.6,0.002]
[1761226595741,2.58805962,3863.9,3863.6,0.002]
[1761226596066,2.58819266,3863.7,3863.6,0.002]
[1761226596265,2.58812688,3863.8,3863.6,0.002]
[1761226596568,2.58819266,3863.7,3863.6,0.002]
[1761226596966,0.1744,3864.2,3863.8,2.5881224]
[1761226597167,6.1447014,3864.5,3863.8,2.5881224]
[1761226597367,0.0997,3864.9,3863.6,0.002]
[1761226597541,0.4348965,3865.0,3864.4,2.5876624]
[1761226597542,0.001,3865.0,3864.4,2.5876624]
[1761226597744,3.554,3865.0,3864.4,2.5876624]
[1761226598055,2.58740243,3864.9,3863.6,0.002]
[1761226598256,3.6545,3865.0,3864.5,2.58763143]
[1761226598452,3.553,3864.9,3863.7,2.58819266]
[1761226598655,6.24091285,3864.9,3864.0,2.58796644]
[1761226598963,6.14040199,3864.9,3863.6,0.80389646]
[1761226599165,3.553,3864.9,3863.6,0.32999646]
[1761226599365,0.001,3865.0,3863.7,0.4739]
[1761226599666,3.552,3865.0,3864.3,2.58778252]
[1761226599971,3.552,3865.0,3863.7,0.4739]
[1761226599972,0.001,3865.0,3863.9,2.58805869]
[1761226600155,0.001,3865.0,3864.9,2.80308906]
[1761226600665,0.001,3865.0,3864.9,3.27698906]
[1761226601071,0.001,3865.0,3864.9,3.86343516]
[1761226601543,0.001,3865.0,3864.9,3.38953516]
[1761226601743,0.001,3865.0,3864.9,3.86343516]
[1761226602260,0.001,3865.0,3864.9,2.58738906]
[1761226602574,0.001,3865.0,3864.5,0.1296]
[1761226602760,0.001,3865.0,3864.4,0.2157]
[1761226602961,0.001,3865.0,3864.9,2.58738906]
[1761226603680,0.001,3865.0,3864.5,0.4739]
[1761226604002,0.001,3865.0,3864.4,0.2157]
[1761226604346,0.001,3865.0,3864.7,2.58748909]
[1761226604541,0.001,3865.0,3864.5,2.58765687]
[1761226604840,0.001,3865.0,3864.8,2.58743688]
[1761226605041,0.001,3865.0,3864.6,2.58758768]
[1761226605276,0.001,3865.0,3864.4,0.2157]
[1761226605491,0.001,3865.0,3863.6,6.13423222]
[1761226605695,2.58833706,3865.0,3864.3,2.58777753]
[1761226605997,0.80355652,3865.0,3863.6,0.002]
[1761226606159,0.1009,3865.0,3863.9,2.5879926]
[1761226606349,2.58753552,3864.7,3863.9,2.5879926]
[1761226606687,0.1009,3865.0,3863.6,2.59022155]
[1761226606870,0.1729,3864.0,3863.6,0.002]
[1761226607048,0.1729,3864.0,3863.6,2.59021554]
[1761226607250,0.1729,3864.0,3863.6,0.002]
[1761226607472,0.1024,3865.0,3863.9,2.58799551]
[1761226607686,0.1024,3865.0,3863.7,2.58819266]
[1761226607687,2.58765592,3864.6,3863.6,0.002]
[1761226608002,3.91037101,3864.9,3863.6,0.002]
[1761226608283,2.58792535,3864.1,3863.6,0.002]
[1761226608700,2.85982535,3864.1,3863.6,0.002]
[1761226608998,0.2719,3864.1,3863.6,0.002]
[1761226609296,0.26897101,3864.9,3863.9,2.58800083]
[1761226609493,0.26897101,3864.9,3864.0,2.58792972]
[1761226609494,6.2261092,3864.9,3864.0,2.58792972]
[1761226609794,2.58752668,3864.7,3864.0,2.58792972]
[1761226610091,1.5552,3864.8,3864.1,2.58789194]
[1761226610293,1.5552,3864.8,3863.6,0.002]
[1761226610499,2.58753141,3864.7,3863.9,2.58799285]
[1761226610670,2.58753141,3864.7,3864.0,2.58798612]
[1761226610874,2.33322229,3864.8,3863.6,0.002]
[1761226611062,0.1732,3863.7,3863.6,0.002]
[1761226611461,0.1724,3863.9,3863.6,0.002]
[1761226612398,0.70722772,3863.9,3863.6,0.002]
[1761226612597,0.1724,3863.9,3863.6,0.002]
[1761226612968,0.1724,3864.2,3863.6,0.002]
[1761226613163,0.1296,3863.7,3863.6,0.002]
[1761226613798,0.1296,3863.7,3863.6,2.59025965]
[1761226613975,3.532,3864.7,3863.7,2.58819266]
[1761226614186,4.15415944,3864.7,3863.9,2.58799667]
[1761226614391,2.58767038,3864.5,3863.8,2.58809945]
[1761226614587,2.58767721,3864.5,3863.6,0.002]
[1761226614780,0.1019,3864.4,3863.6,2.59025955]
[1761226614984,2.5877908,3864.3,3863.6,2.59025955]
[1761226615181,0.7240573,3864.4,3863.6,0.002]
[1761226615604,2.58793201,3864.1,3863.6,0.002]
[1761226615897,2.75919266,3863.7,3863.6,0.002]
[1761226616313,2.86179266,3863.7,3863.6,0.002]
[1761226616501,5.31447863,3863.7,3863.6,0.002]
[1761226618184,2.62368597,3863.7,3863.6,0.002]
[1761226618410,3.521,3863.9,3863.6,0.002]
[1761226619009,2.58812965,3863.8,3863.6,0.002]
[1761226619333,6.10908327,3863.9,3863.6,0.002]
[1761226619536,2.58812762,3863.8,3863.6,0.002]
[1761226619730,2.58813907,3863.8,3863.6,0.002]
[1761226620434,2.58819266,3863.7,3863.6,0.002]
[1761226620736,0.2736,3864.2,3863.6,0.002]
[1761226620938,0.001,3865.0,3864.1,0.2336]
[1761226621141,0.001,3865.0,3864.9,2.58738906]
[1761226621637,0.001,3865.0,3864.6,2.58753729]
[1761226621788,0.001,3864.8,3863.9,2.58800461]
[1761226621988,0.001,3864.8,3863.6,0.002]
[1761226621989,3.52,3864.7,3863.6,0.002]
[1761226622219,0.099,3864.5,3863.6,0.002]
[1761226622616,2.58799171,3864.0,3863.6,0.002]
[1761226622821,3.52,3863.9,3863.6,0.002]
[1761226623022,3.52,3863.8,3863.6,0.002]
[1761226624039,0.1296,3863.7,3863.6,0.002]
[1761226624335,0.001,3864.8,3863.7,0.4658]
[1761226624540,0.001,3864.8,3864.7,2.58752296]
[1761226624904,0.001,3864.8,3864.7,3.05332296]
[1761226625318,0.001,3864.8,3864.7,3.666656]
[1761226625515,0.2936,3867.2,3864.7,3.666656]
[1761226625716,0.142,3866.9,3864.9,0.50688]
[1761226625919,13.54108556,3866.8,3864.7,0.58745782]
[1761226626121,2.58691772,3865.7,3864.2,0.4658]
[1761226626332,0.50688,3866.6,3864.2,0.4658]
[1761226626333,3.52,3865.8,3864.2,0.4658]
[1761226626644,2.5873595,3865.0,3864.1,2.58786745]
[1761226626852,3.52,3864.9,3863.9,0.2336]
[1761226626996,3.52,3864.9,3863.7,2.58812988]
[1761226626997,0.1741,3864.0,3863.6,0.002]
[1761226627734,2.5881298,3863.8,3863.6,0.002]
[1761226627898,0.89698579,3863.8,3863.6,0.002]
[1761226628093,3.519,3864.3,3863.7,0.4658]
[1761226628300,4.14290271,3864.5,3863.6,2.59021178]
[1761226628595,2.58773357,3864.4,3863.6,0.002]
[1761226628822,1.5552,3864.7,3864.0,2.58793881]
[1761226629026,1.5552,3864.7,3863.6,0.002]
[1761226629027,3.519,3864.3,3863.6,0.002]
[1761226629228,2.58785777,3864.2,3863.6,0.002]
[1761226629394,6.10679476,3864.3,3863.6,2.59023736]
[1761226629590,6.1067994,3864.3,3863.6,0.002]
[1761226629825,0.86944616,3864.2,3863.6,0.002]
[1761226630025,2.68925777,3864.2,3863.6,0.002]
[1761226630226,3.519,3864.3,3863.6,0.002]
[1761226630227,0.1014,3864.1,3863.6,0.002]
[1761226630528,2.58806154,3863.9,3863.6,0.002]
[1761226630713,2.58813764,3863.8,3863.6,0.002]
[1761226631028,2.58807088,3863.9,3863.6,0.002]
[1761226631245,2.58814829,3863.8,3863.6,0.002]
[1761226631432,6.10319266,3863.7,3863.6,0.002]
[1761226631744,6.20459266,3863.7,3863.6,0.002]
[1761226632243,6.20459266,3863.7,3863.2,0.002]
[1761226632244,4.75114064,3863.3,3863.2,0.001]
[1761226632446,6.04095097,3863.3,3863.2,0.001]
[1761226632821,2.06208,3863.2,3860.4,0.4678]
[1761226633028,2.5896631,3861.6,3860.4,2.59237723]
[1761226633341,2.58974375,3861.4,3860.4,0.002]
[1761226633544,13.54108556,3861.0,3860.4,0.002]
[1761226633731,0.2837,3861.3,3860.4,0.002]
[1761226633934,1.5552,3861.1,3860.4,0.002]
[1761226634110,2.59008247,3860.9,3860.4,0.002]
[1761226634317,2.59001271,3861.0,3860.4,0.002]
[1761226634535,0.1296,3860.5,3860.4,2.59240513]
[1761226634862,0.1296,3860.5,3860.4,0.002]
[1761226635246,3.6476,3860.5,3860.4,0.002]
[1761226638253,0.3182,3862.1,3860.4,0.4678]
[1761226638557,0.2176,3862.1,3860.5,0.53943326]
[1761226638990,0.2176,3862.1,3860.5,1.00523326]
[1761226639153,0.2176,3862.1,3860.6,0.0259027]
[1761226639360,1.7728,3862.1,3861.3,2.58975789]
[1761226639666,0.67830123,3862.1,3861.5,2.58965951]
[1761226639855,2.58933829,3862.0,3861.3,2.58980136]
[1761226640056,2.58937909,3862.0,3861.2,2.58983406]
[1761226640254,2.58937909,3862.0,3860.9,2.59006967]
[1761226640255,0.2176,3862.1,3860.8,0.4658]
[1761226640488,1.397,3862.0,3861.5,2.58961914]
[1761226640694,2.5878261,3864.3,3861.5,0.25916191]
[1761226640898,2.58874498,3862.9,3861.6,0.4658]
[1761226641083,2.58821561,3863.7,3861.6,0.4658]
[1761226641084,2.58821766,3863.7,3862.0,2.58929138]
[1761226641284,0.1026,3863.9,3862.9,2.58867056]
[1761226641285,2.58814309,3863.8,3862.9,2.58867056]
[1761226641599,3.514,3863.7,3862.9,2.58870052]
[1761226641811,4.13446474,3863.7,3862.2,0.2336]
[1761226642105,2.5885128,3863.3,3862.4,2.58903068]
[1761226642310,4.13446474,3863.7,3862.3,0.4658]
[1761226642506,3.515,3863.8,3862.5,0.4658]
[1761226642999,1.5552,3863.7,3862.5,3.36023231]
[1761226643203,3.515,3863.8,3862.5,3.05475052]
[1761226643360,3.515,3863.8,3863.3,2.58841236]
[1761226643561,1.5552,3863.7,3863.3,2.58841236]
[1761226643892,1.5552,3863.7,3863.3,2.58845173]
[1761226644270,1.5552,3863.7,3863.1,2.58859068]
[1761226644479,3.515,3863.8,3863.4,2.5883906]
[1761226644677,3.515,3863.8,3863.0,0.2336]
[1761226644678,3.51,3863.8,3863.0,0.2336]
[1761226644984,3.51,3863.8,3863.1,2.58858197]
[1761226645157,3.509,3863.7,3863.0,2.82224434]
[1761226645361,0.1847,3864.1,3862.6,0.4658]
[1761226645567,0.59377463,3864.1,3862.6,0.4658]
[1761226645788,6.09600139,3864.0,3862.6,0.4658]
[1761226645977,2.58806189,3863.9,3863.2,2.58852304]
[1761226646181,3.508,3864.0,3863.2,2.58852304]
[1761226646366,6.0960036,3864.0,3863.2,2.58852304]
[1761226646859,3.508,3864.0,3862.6,0.4658]
[1761226647059,14.04796556,3863.8,3861.7,0.2336]
[1761226647276,2.58864098,3863.1,3862.3,2.58908214]
[1761226647592,1.5552,3862.9,3862.2,2.58919234]
[1761226647757,4.52764129,3862.9,3861.8,0.4424]
[1761226647963,4.52764129,3862.9,3861.7,0.2336]
[1761226648163,0.1296,3862.0,3861.7,0.2336]
[1761226648489,0.1296,3862.0,3861.9,2.589399]
[1761226648860,0.1296,3862.0,3861.8,2.58945113]
[1761226649061,0.1296,3862.0,3861.9,2.589399]
[1761226649497,3.505,3862.2,3861.4,0.002]
[1761226649660,2.58886559,3862.7,3861.4,0.4718]
[1761226649861,3.504,3862.4,3861.9,2.58935105]
[1761226650068,2.1257,3864.1,3862.0,0.02589331]
[1761226650069,0.37959,3863.9,3862.0,0.02589331]
[1761226650263,0.37959,3863.9,3861.5,3.504]
[1761226650264,2.58806774,3863.9,3863.1,2.58858782]
[1761226650460,0.0998,3864.0,3862.1,0.96382727]
[1761226650693,2.68779305,3864.0,3862.8,2.58874194]
[1761226650999,2.68779305,3864.0,3862.2,0.4698]
[1761226651000,1.5552,3863.8,3863.1,2.58854344]
[1761226651201,2.58805869,3863.9,3863.1,2.58854344]
[1761226651506,0.0998,3864.0,3863.0,2.58865444]
[1761226651673,1.7399,3864.1,3862.8,2.58879569]
[1761226651874,3.505,3863.9,3862.8,0.30585957]
[1761226652093,3.505,3863.9,3863.4,2.58834273]
[1761226652806,3.505,3863.9,3862.9,0.4698]
[1761226652961,0.0998,3863.8,3863.3,2.58845463]
[1761226653163,3.505,3863.9,3862.4,0.4698]
[1761226653363,1.655,3864.5,3863.4,2.58832805]
[1761226653364,0.1863,3864.2,3863.4,2.58832805]
[1761226653575,0.1863,3864.2,3863.2,0.2325]
[1761226653798,0.1863,3864.2,3862.5,2.98631548]
[1761226653799,2.58799171,3864.0,3862.5,3.15138]
[1761226654101,2.58799171,3864.0,3862.2,0.4698]
[1761226654102,2.58820579,3863.7,3862.8,2.58876906]
[1761226654431,0.71055,3864.2,3862.2,0.4698]
[1761226654720,0.71055,3864.2,3862.1,0.2325]
[1761226654721,2.58837718,3863.5,3862.3,0.4698]
[1761226654921,2.58837718,3863.5,3862.1,0.2325]
[1761226654922,3.503,3863.4,3862.1,0.2325]
[1761226655108,0.1863,3864.2,3861.4,0.002]
[1761226655109,2.58871579,3863.0,3862.0,2.58928316]
[1761226655309,0.51772434,3862.9,3861.4,1.0278]
[1761226655519,0.69312434,3862.9,3861.8,2.58942855]
[1761226655723,0.79212434,3862.9,3861.8,2.58946083]
[1761226655896,0.099,3862.8,3861.4,0.002]
[1761226656096,0.78727997,3862.8,3861.4,0.002]
[1761226656306,0.099,3862.8,3861.4,0.002]
[1761226656509,1.5552,3862.2,3861.7,2.58952899]
[1761226656711,2.58920893,3862.2,3861.4,2.59170177]
[1761226656922,0.099,3862.1,3861.5,2.58962093]
[1761226657092,0.099,3862.1,3861.4,2.59172566]
[1761226657288,2.68828174,3862.1,3861.4,2.59172566]
[1761226657620,2.68828174,3862.1,3861.4,0.002]
[1761226657621,0.099,3862.0,3861.4,0.002]
[1761226657925,2.58966722,3861.5,3861.4,0.002]
[1761226658287,2.58954288,3861.7,3861.4,0.002]
[1761226658521,2.68866722,3861.5,3861.4,0.002]
[1761226658720,4.24386722,3861.5,3861.4,0.002]
[1761226658910,2.2385416,3861.5,3861.4,0.002]
[1761226659113,5.1562,3861.5,3861.4,0.002]
[1761226659309,7.74586722,3861.5,3861.4,0.002]
[1761226659527,7.87546722,3861.5,3861.4,0.002]
[1761226660023,5.1868,3861.5,3861.4,0.002]
[1761226660529,0.099,3862.7,3861.4,0.002]
[1761226660822,4.14419676,3862.5,3861.7,2.58948264]
[1761226661023,1.5552,3862.4,3861.8,2.58946076]
[1761226661240,1.5552,3862.4,3861.4,3.06147062]
[1761226661241,0.23413285,3863.3,3861.5,0.49569667]
[1761226661447,0.1296,3862.0,3861.6,2.58959503]
[1761226661744,0.1296,3862.5,3861.9,0.1296]
[1761226661905,0.1296,3862.5,3862.4,2.58906379]
[1761226662106,0.1296,3862.5,3861.6,0.4698]
[1761226662334,0.1296,3861.9,3861.4,0.1316]
[1761226662534,3.334,3862.4,3861.7,2.58952101]
[1761226662918,0.1296,3861.8,3861.6,2.5895932]
[1761226663244,0.1296,3861.8,3861.4,0.002]
[1761226663443,0.099,3862.6,3861.4,0.4718]
[1761226663648,1.5552,3862.4,3861.4,3.06152793]
[1761226663847,4.1442706,3862.4,3861.4,0.4718]
[1761226664046,4.1442706,3862.4,3861.7,2.58950944]
[1761226664221,1.5552,3862.4,3861.8,2.58944693]
[1761226664734,1.5552,3862.4,3861.5,2.58966722]
[1761226664951,3.76779227,3862.5,3861.4,0.002]
[1761226664952,0.26879227,3862.5,3861.4,0.002]
[1761226665137,1.512,3862.4,3861.7,2.58948577]
[1761226665447,1.512,3862.4,3861.4,0.002]
[1761226665766,1.5552,3862.3,3861.4,0.002]
[1761226665967,1.5552,3862.1,3861.4,0.002]
[1761226666271,4.14486722,3861.5,3861.4,0.002]
[1761226666421,7.73986722,3861.5,3861.4,0.002]
[1761226666950,8.24674722,3861.5,3861.4,0.002]
[1761226667152,9.01727337,3861.5,3861.4,0.002]
[1761226667327,11.74527337,3861.5,3861.4,0.002]
[1761226667528,11.619204,3861.5,3861.4,0.002]
[1761226668651,11.617204,3861.5,3861.4,0.002]
[1761226669521,2.59020384,3860.7,3860.6,0.002]
[1761226669723,6.08420384,3860.7,3860.6,0.002]
[1761226669924,6.18440384,3860.7,3860.6,0.002]
[1761226670124,2.59060646,3860.1,3860.0,0.002]
[1761226670345,6.18360646,3860.1,3860.0,0.002]
[1761226671837,7.73880646,3860.1,3860.0,0.002]
[1761226672038,8.24568646,3860.1,3860.0,0.002]
[1761226672362,8.82554625,3860.1,3860.0,0.002]
[1761226673580,5.33354625,3860.1,3860.0,0.002]
[1761226673726,8.82154625,3860.1,3860.0,0.002]
[1761226674632,8.95062359,3860.1,3860.0,0.002]
[1761226675565,8.81954625,3860.1,3860.0,0.002]
[1761226676371,5.33354625,3860.1,3860.0,0.002]
[1761226676537,8.81854625,3860.1,3860.0,0.002]
[1761226677154,5.33354625,3860.1,3860.0,0.002]
[1761226677355,8.31146625,3860.1,3860.0,0.002]
[1761226678247,4.72566625,3860.1,3860.0,0.002]
[1761226678452,6.07360646,3860.1,3860.0,0.002]
[1761226678650,7.62880646,3860.1,3860.0,0.002]
[1761226679051,8.23828646,3860.1,3860.0,0.002]
[1761226679465,4.65268646,3860.1,3860.0,0.002]
[1761226679666,6.58048646,3860.1,3860.0,0.002]
[1761226679878,4.40019769,3860.1,3860.0,0.002]
[1761226680186,7.62880646,3860.1,3860.0,0.002]
[1761226680483,1.5552,3860.1,3860.0,0.002]
[1761226680651,3.484,3860.1,3860.0,0.4321]
[1761226680851,3.484,3860.1,3860.0,0.002]
[1761226681079,3.4832,3860.1,3860.0,0.002]
[1761226681640,7.62900646,3860.1,3860.0,0.002]
[1761226681840,1.5552,3860.1,3860.0,0.6621]
[1761226682046,5.0372,3860.1,3860.0,0.6621]
[1761226682768,5.0372,3860.1,3860.0,0.232]
[1761226683145,7.62780646,3860.1,3860.0,0.232]
[1761226683345,5.0372,3860.1,3860.0,0.002]
[1761226683546,5.1668,3860.1,3860.0,0.002]
[1761226683949,5.1668,3860.1,3860.0,0.4321]
[1761226684342,1.6848,3860.1,3860.0,0.4321]
[1761226684545,5.1628,3860.1,3860.0,0.4321]
[1761226684756,5.1628,3860.1,3860.0,0.002]
[1761226684958,8.64706646,3860.1,3860.0,0.002]
[1761226685189,2.07158,3860.1,3860.0,0.002]
[1761226685487,5.0332,3860.1,3860.0,0.4321]
[1761226685659,1.5552,3860.1,3860.0,0.002]
[1761226685861,5.0332,3860.1,3860.0,0.002]
[1761226686246,7.62380646,3860.1,3860.0,0.002]
[1761226686455,8.38628711,3860.1,3860.0,0.002]
[1761226686947,1.5552,3860.1,3860.0,0.002]
[1761226687153,5.0322,3860.1,3860.0,0.4321]
[1761226687352,1.5552,3860.1,3860.0,0.4321]
[1761226687549,1.5552,3860.1,3860.0,0.002]
[1761226687897,4.14580646,3860.1,3860.0,0.002]
[1761226688096,5.77900729,3860.1,3860.0,0.002]
[1761226689001,9.15610729,3860.1,3860.0,0.002]
[1761226689494,9.26100729,3860.1,3860.0,0.002]
[1761226690097,9.15610729,3860.1,3860.0,0.002]
[1761226690296,9.15510729,3860.1,3860.0,0.002]
[1761226690495,9.15410729,3860.1,3860.0,0.002]
[1761226690698,8.64722729,3860.1,3860.0,0.002]
[1761226691097,9.25900729,3860.1,3860.0,0.002]
[1761226691679,9.15410729,3860.1,3860.0,0.002]
[1761226692205,9.25900729,3860.1,3860.0,0.002]
[1761226692776,3.09802347,3859.3,3859.2,0.002]
[1761226693005,9.30202347,3859.3,3859.2,0.002]
[1761226693207,11.52454811,3859.3,3859.2,0.002]
[1761226694304,8.79654811,3859.3,3859.2,0.002]
[1761226694605,2.59221816,3857.7,3857.2,0.6]
[1761226694778,4.14768697,3857.3,3857.2,0.6]
[1761226694975,1.6848,3857.3,3857.2,0.6]
[1761226695182,7.76728697,3857.3,3857.2,0.6]
[1761226695374,5.1748,3857.3,3857.2,0.6]
[1761226695571,7.76728697,3857.3,3857.2,0.6]
[1761226695774,5.1748,3857.3,3857.2,0.6]
[1761226696395,8.28476697,3857.3,3857.2,0.6]
[1761226696909,1.6848,3857.3,3857.2,0.6]
[1761226697117,0.1168,3858.6,3857.3,2.59248697]
[1761226697425,0.1296,3857.5,3857.2,0.6]
[1761226697589,1.5552,3857.3,3857.2,0.6]
[1761226697794,3.491,3857.3,3857.2,0.6]